bitfinex-derivatives/quotes_ETHF0:USTF0_20250112
["timestamp","ask_amount","ask_price","bid_price","bid_amount"]
[1736689700305,0.9219,3265.8,3265.4,51.1693487]
[1736689700705,1.13634,3265.8,3265.6,0.21444]
[1736689701114,0.9219,3265.8,3265.4,44.0078]
[1736689701317,3.2078,3265.7,3265.3,7.1615487]
[1736689701517,0.21446,3265.4,3265.3,7.1615487]
[1736689702113,3.74392,3265.7,3265.0,10.83080472]
[1736689702421,0.21448,3265.1,3265.0,10.3693487]
[1736689703023,0.21448,3265.1,3265.0,3.2078]
[1736689707924,0.4717,3265.2,3264.7,3.2078]
[1736689708123,0.21449,3265.0,3264.9,0.21449]
[1736689708426,0.21449,3265.0,3264.8,0.2145]
[1736689709022,0.15433782,3265.1,3264.8,0.2145]
[1736689709218,0.21449,3264.9,3264.8,0.2145]
[1736689709826,0.15433782,3265.1,3264.8,0.2145]
[1736689710021,0.21449,3265.0,3264.8,0.2145]
[1736689710323,0.15433782,3265.1,3265.0,0.21449]
[1736689710824,0.15433782,3265.1,3265.0,41.01449]
[1736689711424,3.2078,3265.5,3265.0,41.01449]
[1736689711619,3.2078,3265.5,3265.4,0.21446]
[1736689712029,0.4714,3265.6,3265.5,0.21445]
[1736689712528,0.9169,3265.9,3265.8,0.21443]
[1736689712529,1.15043,3265.9,3265.8,0.21443]
[1736689712920,1.15043,3265.9,3265.7,0.21444]
[1736689713529,0.936,3265.9,3265.8,0.21444]
[1736689715425,1.15043,3265.9,3265.8,0.21444]
[1736689716026,0.936,3265.9,3265.8,0.21444]
[1736689716725,0.00100538,3266.0,3265.9,0.21443]
[1736689717835,0.00100538,3266.0,3265.9,3.42223]
[1736689720431,0.00100538,3266.0,3265.9,44.22223]
[1736689722040,0.00100538,3266.0,3265.9,3.42223]
[1736689722431,0.00100538,3266.0,3265.9,44.22223]
[1736689726738,0.15390744,3266.2,3266.1,0.21442]
[1736689728339,0.15390744,3266.2,3266.1,41.46402]
[1736689728837,0.15390744,3266.2,3266.1,0.66402]
[1736689731345,0.15390744,3266.2,3266.1,0.21442]
[1736689734947,1.09970744,3266.2,3266.1,0.21442]
[1736689735339,3.2078,3267.1,3266.4,0.53599]
[1736689735645,0.4541,3266.9,3266.8,0.21437]
[1736689736346,0.60929508,3266.9,3266.8,0.21437]
[1736689749853,0.60929508,3266.9,3266.5,3.2078]
[1736689750054,0.82366508,3266.9,3266.7,0.21437]
[1736689750558,0.66847,3266.9,3266.7,0.21437]
[1736689751450,0.66847,3266.9,3266.8,0.21437]
[1736689751655,0.4541,3266.9,3266.8,0.21437]
[1736689752255,0.60980133,3266.9,3266.8,0.21437]
[1736689756555,0.15570133,3266.9,3266.8,0.21437]
[1736689758062,0.15570133,3266.9,3266.8,41.01437]
[1736689760257,3.2078,3267.5,3267.4,0.21433]
[1736689762367,3.2078,3268.0,3267.2,0.9146]
[1736689762570,3.2078,3268.0,3267.8,0.2143]
[1736689763161,3.2078,3268.0,3267.9,0.2143]
[1736689765165,3.2078,3268.0,3267.4,1.00172]
[1736689765166,0.21431,3267.8,3267.6,0.21431]
[1736689765369,1.16831,3267.7,3267.2,0.4471]
[1736689765565,1.16831,3267.7,3267.6,0.21432]
[1736689765566,0.954,3267.7,3267.6,0.21432]
[1736689767270,3.2078,3268.4,3267.6,8.2078]
[1736689767465,0.21423,3269.0,3268.7,0.21424]
[1736689767666,1.14872,3269.2,3268.9,0.21423]
[1736689767864,0.9345,3269.2,3268.6,4.4188]
[1736689768065,0.9345,3269.2,3269.0,0.21422]
[1736689768266,0.9345,3269.2,3268.6,4.4188]
[1736689768465,0.15310967,3269.4,3269.0,3.2078]
[1736689768766,0.15310967,3269.4,3269.3,0.21421]
[1736689768962,0.15310967,3269.4,3269.3,1.42521]
[1736689769163,3.2078,3269.8,3269.3,1.211]
[1736689769365,3.2078,3269.8,3269.5,0.21419]
[1736689769566,3.2078,3269.8,3269.6,0.21418]
[1736689769865,3.2078,3269.8,3269.3,1.211]
[1736689770066,0.24062455,3271.1,3269.3,1.211]
[1736689770067,0.21412,3270.6,3270.1,0.21415]
[1736689770265,0.21412,3270.6,3270.0,4.4188]
[1736689770461,0.4523,3270.5,3270.0,4.4188]
[1736689770674,0.21415,3270.2,3270.0,44.0078]
[1736689770972,0.21416,3270.0,3269.6,3.42198]
[1736689771163,3.2078,3270.0,3269.2,3.2078]
[1736689771368,0.2142,3269.5,3268.8,3.2078]
[1736689771669,0.894,3269.4,3269.3,0.21421]
[1736689771877,0.894,3269.4,3268.8,10.3693487]
[1736689772078,0.4523,3269.4,3268.8,10.3693487]
[1736689772371,0.4523,3269.4,3269.1,0.21422]
[1736689772569,0.21421,3269.3,3268.9,0.21423]
[1736689772876,0.4523,3269.4,3268.8,3.2078]
[1736689773071,0.21421,3269.3,3268.8,3.2078]
[1736689773272,0.4523,3269.4,3269.1,0.21422]
[1736689773580,0.81747788,3269.4,3269.0,0.21422]
[1736689774168,0.21421,3269.3,3268.9,0.21423]
[1736689774479,0.60327788,3269.4,3268.9,0.21423]
[1736689774676,0.21421,3269.3,3268.9,0.21423]
[1736689775273,0.60327788,3269.4,3268.8,3.2078]
[1736689775667,0.21423,3269.0,3268.8,3.2078]
[1736689775873,0.67573,3268.9,3268.8,3.2078]
[1736689776273,0.21426,3268.6,3268.4,3.2078]
[1736689776471,1.12004,3268.8,3268.4,3.2078]
[1736689776672,1.12004,3268.8,3268.5,0.21426]
[1736689776873,1.12004,3268.8,3268.4,3.42206]
[1736689777375,0.9058,3268.8,3268.4,3.42206]
[1736689777578,0.21425,3268.7,3268.4,3.42206]
[1736689777780,0.9058,3268.8,3268.4,44.0078]
[1736689777972,0.21425,3268.6,3268.4,3.2078]
[1736689779279,0.21426,3268.5,3268.4,3.2078]
[1736689779979,0.9058,3268.8,3268.4,3.2078]
[1736689779980,0.21426,3268.6,3268.4,3.2078]
[1736689780679,0.21425,3268.6,3268.4,3.2078]
[1736689780880,3.2078,3269.5,3268.8,0.21423]
[1736689781079,0.4825,3269.0,3268.8,3.42203]
[1736689781383,0.69673,3269.0,3268.8,3.2078]
[1736689781883,0.21423,3268.9,3268.8,3.2078]
[1736689782881,0.21423,3268.9,3268.5,0.4632]
[1736689783083,0.21423,3268.9,3268.6,0.21425]
[1736689783783,0.21424,3268.8,3268.5,0.21426]
[1736689783976,0.21426,3268.6,3268.4,3.2078]
[1736689784479,0.4786,3268.5,3268.4,3.2078]
[1736689786482,0.4786,3268.5,3268.4,3.42207]
[1736689786682,0.69286,3268.5,3268.4,3.2078]
[1736689786885,0.4786,3268.5,3268.4,3.2078]
[1736689787774,0.4786,3268.5,3268.4,3.42207]
[1736689789479,0.4718,3268.7,3268.4,3.2078]
[1736689789783,0.15124693,3268.9,3268.5,0.9523]
[1736689789983,0.15124693,3268.9,3268.8,0.21424]
[1736689790479,0.15124693,3268.9,3268.8,3.42204]
[1736689790675,0.15124693,3268.9,3268.8,4.63204]
[1736689790877,0.21419,3269.6,3269.3,0.2142]
[1736689791084,0.21419,3269.6,3268.8,4.63204]
[1736689791085,0.21419,3269.7,3269.4,3.2078]
[1736689791283,0.21419,3269.5,3269.4,2.9936]
[1736689792586,0.21419,3269.5,3269.4,3.2078]
[1736689793386,0.21419,3269.5,3269.4,2.97812192]
[1736689793587,0.4464,3269.8,3269.4,2.76392192]
[1736689793887,0.21418,3269.7,3269.4,2.76392192]
[1736689794188,0.21418,3269.7,3269.5,0.21419]
[1736689794388,0.21418,3269.7,3269.6,0.21419]
[1736689794588,0.21419,3269.5,3269.4,2.97812192]
[1736689795086,0.4464,3269.8,3269.4,2.76392192]
[1736689795589,0.21418,3269.7,3269.6,0.21418]
[1736689795790,0.21418,3269.7,3269.4,2.76392192]
[1736689796189,0.4661,3270.0,3269.7,0.21418]
[1736689796190,0.21418,3269.8,3269.7,0.21418]
[1736689796490,0.21418,3269.7,3269.6,0.21418]
[1736689797186,0.21418,3269.7,3269.4,2.76392192]
[1736689797488,0.4633,3269.9,3269.4,2.76392192]
[1736689797687,0.21419,3269.5,3269.4,2.97812192]
[1736689797883,0.21419,3269.5,3269.4,2.76392192]
[1736689798090,0.21419,3269.6,3269.4,2.97811192]
[1736689798277,0.21419,3269.6,3269.5,0.21419]
[1736689798483,0.21419,3269.6,3269.4,2.76392192]
[1736689798786,0.15399309,3269.8,3269.5,0.21419]
[1736689799088,0.36817309,3269.8,3269.6,0.21418]
[1736689799283,0.36817309,3269.8,3269.4,2.76392192]
[1736689799485,0.36817309,3269.8,3269.5,0.21419]
[1736689799685,0.21418,3269.7,3269.5,0.21419]
[1736689799881,0.21419,3269.6,3269.4,2.97812192]
[1736689800191,0.15399309,3269.8,3269.4,2.76392192]
[1736689800387,0.21419,3269.5,3269.4,2.76392192]
[1736689800789,0.21422,3269.1,3269.0,3.2078]
[1736689800987,0.21423,3269.0,3268.6,1.222]
[1736689801295,0.21423,3269.0,3268.8,0.21423]
[1736689801791,0.21423,3269.0,3268.6,1.222]
[1736689801987,0.21423,3269.0,3268.7,0.21425]
[1736689802397,0.21422,3269.2,3269.0,0.21422]
[1736689802893,0.67701,3269.3,3269.1,0.21422]
[1736689803095,0.9328,3269.4,3268.9,3.2078]
[1736689803391,1.147,3269.4,3269.2,0.21421]
[1736689803593,0.21421,3269.3,3269.1,0.21422]
[1736689804392,0.9328,3269.4,3268.9,3.2078]
[1736689804599,0.9328,3269.4,3268.9,3.42203]
[1736689804792,0.21422,3269.1,3268.9,3.42203]
[1736689805597,0.21423,3269.0,3268.9,3.2078]
[1736689806393,0.9328,3269.4,3268.9,3.2078]
[1736689806695,0.21422,3269.1,3268.9,3.42203]
[1736689807098,0.21423,3269.0,3268.9,3.2078]
[1736689807285,0.4582,3269.0,3268.9,3.2078]
[1736689807491,0.9328,3269.4,3268.9,3.42203]
[1736689807795,0.21422,3269.2,3269.0,0.21422]
[1736689808186,0.4479,3269.3,3268.9,3.2078]
[1736689808594,0.21422,3269.1,3268.9,3.42203]
[1736689809292,0.21423,3269.0,3268.9,3.2078]
[1736689809496,0.21423,3269.0,3268.9,2.97817326]
[1736689809998,0.21424,3268.8,3268.6,0.21425]
[1736689810199,0.4732,3268.7,3268.6,0.21425]
[1736689810490,0.4732,3268.7,3268.5,3.6543]
[1736689810896,0.4732,3268.7,3268.6,0.21425]
[1736689811098,0.68745,3268.7,3268.5,3.6543]
[1736689811395,0.4732,3268.7,3268.6,0.21425]
[1736689812990,0.15573471,3269.1,3268.5,3.6543]
[1736689813298,0.4481,3269.0,3268.6,0.21425]
[1736689813499,0.66233,3269.0,3268.8,0.21423]
[1736689813700,0.4481,3269.0,3268.9,0.21423]
[1736689813896,0.4481,3269.0,3268.5,4.18994]
[1736689814203,0.15573471,3269.1,3269.0,0.21423]
[1736689814595,0.15573471,3269.1,3269.0,0.67173]
[1736689814901,0.15573471,3269.1,3269.0,41.94453]
[1736689815992,0.69196,3270.0,3269.7,0.21418]
[1736689816302,0.69196,3270.0,3269.7,3.42198]
[1736689816996,0.4778,3270.0,3269.7,3.42198]
[1736689817403,0.9285,3270.2,3269.7,3.2078]
[1736689817702,0.9285,3270.2,3270.0,0.21416]
[1736689818295,1.14265,3270.2,3270.0,0.21416]
[1736689818602,0.9285,3270.2,3270.0,0.21416]
[1736689818801,0.9285,3270.2,3269.8,0.9111]
[1736689819003,0.9285,3270.2,3270.1,0.21415]
[1736689819198,0.4748,3270.2,3270.1,0.21415]
[1736689819408,0.4748,3270.2,3269.8,0.9111]
[1736689819804,0.68895,3270.2,3270.0,0.21416]
[1736689820307,0.4748,3270.2,3270.0,0.21416]
[1736689820507,0.4748,3270.2,3269.8,0.9111]
[1736689820708,0.21417,3269.8,3269.7,3.2078]
[1736689821402,0.21419,3269.6,3269.3,0.2142]
[1736689821709,0.2142,3269.5,3269.3,0.2142]
[1736689822006,0.4586,3270.1,3269.2,1.6941]
[1736689822206,0.4586,3270.1,3269.5,0.21419]
[1736689822406,0.21418,3269.8,3269.5,0.21419]
[1736689822708,0.21417,3269.9,3269.6,0.21418]
[1736689822904,0.21417,3269.9,3269.5,3.2078]
[1736689823106,0.21417,3269.9,3269.7,0.21418]
[1736689823809,0.4586,3270.1,3269.7,0.21418]
[1736689824207,0.21417,3269.9,3269.7,0.21418]
[1736689824400,0.4748,3270.2,3269.5,3.2078]
[1736689824707,0.21415,3270.1,3269.5,3.74329]
[1736689824907,0.21415,3270.1,3269.9,0.21416]
[1736689825107,0.21415,3270.1,3270.0,0.21416]
[1736689825310,0.4748,3270.2,3269.5,3.74329]
[1736689825607,0.21416,3270.1,3270.0,0.21416]
[1736689825807,0.21416,3270.1,3269.5,3.74329]
[1736689826110,0.21416,3270.1,3270.0,0.21416]
[1736689827005,0.4748,3270.2,3270.1,0.21415]
[1736689827497,0.21416,3270.0,3269.9,44.22196]
[1736689827905,0.21418,3269.7,3269.5,0.21419]
[1736689828106,0.21418,3269.8,3269.7,0.21418]
[1736689828307,0.66447,3269.9,3269.7,0.21418]
[1736689828501,0.66447,3269.9,3269.4,4.4268]
[1736689828705,0.66447,3269.9,3269.7,0.21418]
[1736689829113,0.4503,3269.9,3269.8,3.42198]
[1736689829710,0.4748,3270.2,3269.8,3.42198]
[1736689829910,0.21417,3269.9,3269.8,3.42198]
[1736689830108,0.4748,3270.2,3269.8,3.2078]
[1736689830304,0.4748,3270.2,3269.8,3.42197]
[1736689830611,0.21417,3269.9,3269.7,0.21418]
[1736689830813,0.21417,3269.9,3269.8,0.21418]
[1736689831108,0.4748,3270.2,3269.4,4.4268]
[1736689831316,0.68896,3270.2,3270.0,0.21417]
[1736689833014,0.21416,3270.1,3269.9,0.21417]
[1736689833203,0.68896,3270.2,3270.0,0.21416]
[1736689833407,0.4734,3270.3,3269.9,0.4662]
[1736689833608,0.21416,3270.3,3270.1,0.21417]
[1736689833807,0.21416,3270.3,3270.0,0.4462]
[1736689833808,0.4461,3270.5,3270.0,0.4462]
[1736689834505,0.21415,3270.4,3270.2,0.21416]
[1736689834708,0.21415,3270.4,3270.0,0.4462]
[1736689834709,0.4461,3270.5,3270.0,0.4462]
[1736689834909,0.66025,3270.5,3270.3,0.21415]
[1736689835112,0.66025,3270.5,3270.0,0.4462]
[1736689835315,0.66025,3270.5,3270.3,0.21415]
[1736689836211,0.21416,3270.2,3270.1,1.219]
[1736689836410,0.21415,3270.4,3270.2,0.21416]
[1736689837614,0.53532,3270.9,3270.1,1.219]
[1736689837818,0.21415,3270.4,3270.2,0.21416]
[1736689838314,3.2078,3270.6,3270.1,1.219]
[1736689839117,0.21416,3270.4,3270.2,0.21416]
[1736689839517,0.21416,3270.3,3270.1,1.43317]
[1736689839924,0.21415,3270.4,3270.0,0.21418]
[1736689840116,0.21415,3270.4,3270.1,0.21416]
[1736689840315,0.21415,3270.4,3270.2,0.21416]
[1736689840513,0.21416,3270.3,3270.1,0.21417]
[1736689840708,0.21415,3270.4,3270.1,0.21417]
[1736689840914,0.21415,3270.4,3270.2,0.21416]
[1736689841217,3.2078,3270.6,3269.9,42.73116436]
[1736689841419,0.21417,3270.1,3269.9,41.72634436]
[1736689841619,0.4369,3270.0,3269.9,41.72634436]
[1736689842517,0.4369,3270.0,3269.9,41.51216436]
[1736689842715,0.4369,3270.0,3269.9,0.46014436]
[1736689843019,0.4369,3270.0,3269.8,3.2078]
[1736689843224,0.68358,3269.9,3269.8,44.0078]
[1736689844516,0.68358,3269.9,3269.8,43.77821965]
[1736689845721,0.68358,3269.9,3269.8,40.8]
[1736689846724,0.21419,3269.8,3269.6,0.2142]
[1736689847725,0.21419,3269.8,3269.7,40.8]
[1736689852525,0.21419,3269.8,3269.7,41.01419]
[1736689853125,0.68359,3269.9,3269.7,41.01419]
[1736689854523,0.4369,3270.0,3269.9,0.21418]
[1736689854830,0.4369,3270.0,3269.8,0.4581]
[1736689855127,0.4369,3270.0,3269.9,0.21418]
[1736689855814,0.15256379,3270.3,3269.8,0.4581]
[1736689856015,0.15256379,3270.3,3269.8,0.8951]
[1736689856224,0.15256379,3270.3,3270.2,0.21416]
[1736689858126,0.15256379,3270.3,3270.2,3.42196]
[1736689858824,0.9337,3271.2,3270.2,3.42196]
[1736689858825,1.1478,3271.2,3271.0,0.21411]
[1736689859130,0.9337,3271.2,3270.6,4.4228]
[1736689859332,3.2078,3271.4,3270.6,4.95813]
[1736689859630,3.6622,3271.8,3271.0,3.2078]
[1736689859829,0.21407,3271.6,3271.3,0.21409]
[1736689860029,0.21407,3271.7,3271.4,0.21408]
[1736689860325,3.6622,3271.8,3271.2,0.4573]
[1736689860723,0.21407,3271.6,3271.4,0.21408]
[1736689861022,0.21407,3271.6,3271.3,0.21409]
[1736689862331,3.6622,3271.8,3271.2,0.4573]
[1736689862532,0.21408,3271.5,3271.2,0.21409]
[1736689863428,3.6622,3271.8,3271.0,3.2078]
[1736689863731,0.2141,3271.2,3271.0,3.2078]
[1736689863923,0.21409,3271.3,3271.0,0.2141]
[1736689864326,0.2141,3271.3,3270.9,0.21412]
[1736689864635,0.465,3271.3,3270.8,1.215]
[1736689864827,0.67909,3271.3,3271.0,0.21411]
[1736689867431,0.2141,3271.2,3271.0,0.21411]
[1736689867733,0.6791,3271.3,3271.0,0.21411]
[1736689868234,0.2141,3271.2,3270.9,0.21411]
[1736689868627,0.4516,3271.1,3270.9,0.21411]
[1736689868827,0.4516,3271.1,3270.8,1.215]
[1736689869330,0.4516,3271.1,3270.9,0.21411]
[1736689869532,0.4516,3271.1,3271.0,0.21411]
[1736689869833,0.4516,3271.1,3270.8,1.215]
[1736689870031,0.4516,3271.1,3270.9,0.21411]
[1736689870532,0.21412,3271.0,3270.7,1.87113]
[1736689871737,0.21412,3271.0,3270.8,0.21412]
[1736689871937,0.4516,3271.1,3270.7,1.87113]
[1736689872341,0.21414,3270.6,3270.5,3.2078]
[1736689872639,3.2078,3270.9,3270.5,3.2078]
[1736689872941,0.21414,3270.7,3270.5,3.42195]
[1736689874239,0.21414,3270.6,3270.5,3.2078]
[1736689874434,0.21415,3270.5,3270.3,0.21416]
[1736689874639,0.4435,3270.4,3270.3,0.21416]
[1736689875941,0.4435,3270.4,3270.1,0.4583]
[1736689876149,0.4435,3270.4,3270.3,0.21416]
[1736689878340,0.4435,3270.4,3270.1,0.4583]
[1736689878543,0.4435,3270.4,3270.3,0.21416]
[1736689880846,0.15181653,3271.0,3270.3,3.2078]
[1736689881142,0.36593653,3271.0,3270.8,0.21412]
[1736689881345,0.36593653,3271.0,3270.9,40.8]
[1736689882947,0.21412,3270.9,3270.7,0.21413]
[1736689883444,0.21412,3270.9,3270.8,40.8]
[1736689884148,0.21412,3270.9,3270.7,0.21413]
[1736689884649,0.15181653,3271.0,3270.6,0.4759]
[1736689884848,0.15181653,3271.0,3270.8,0.21413]
[1736689885153,0.21413,3270.9,3270.7,41.01413]
[1736689885636,0.21413,3270.9,3270.7,40.8]
[1736689885841,0.21413,3270.9,3270.6,0.4759]
[1736689885842,0.21413,3270.8,3270.6,0.69004]
[1736689887249,0.68283,3270.8,3270.6,0.69004]
[1736689887439,0.4687,3270.8,3270.6,0.4759]
[1736689887639,0.4687,3270.8,3270.7,0.21413]
[1736689887941,0.21413,3270.7,3270.6,0.4759]
[1736689888642,0.21413,3270.7,3270.3,44.71255461]
[1736689888841,0.9474,3270.8,3270.3,44.4757]
[1736689889044,0.21415,3270.4,3270.3,44.4757]
[1736689889242,0.00132716,3270.7,3270.1,0.21417]
[1736689889243,0.21416,3270.3,3270.1,0.21417]
[1736689889441,0.21418,3270.1,3269.9,8.63968334]
[1736689889743,0.21418,3270.1,3269.9,49.43968334]
[1736689889943,0.9397,3270.2,3269.9,8.42550334]
[1736689890148,0.21418,3270.1,3269.9,3.6757]
[1736689890349,0.21417,3270.1,3269.9,3.6757]
[1736689890547,0.21417,3270.1,3269.9,44.4757]
[1736689890948,0.21417,3270.1,3269.9,44.68989]
[1736689891451,0.21418,3270.0,3269.9,44.0078]
[1736689891652,0.21418,3270.1,3269.9,44.22199]
[1736689892251,0.21418,3270.0,3269.5,3.2078]
[1736689892449,0.74963,3270.1,3269.5,3.2078]
[1736689892649,0.2142,3269.7,3269.5,44.0078]
[1736689892841,1.47513,3270.2,3269.5,44.0078]
[1736689893046,1.12781,3269.6,3269.5,44.0078]
[1736689893247,1.12781,3269.6,3269.5,3.2078]
[1736689894855,0.9136,3269.6,3269.3,0.21423]
[1736689895057,1.12781,3269.6,3269.3,0.21423]
[1736689895254,0.21422,3269.5,3269.2,0.65983]
[1736689895457,1.12781,3269.6,3269.3,0.21422]
[1736689895754,0.21422,3269.5,3269.2,0.65983]
[1736689895947,1.12781,3269.6,3269.3,0.21422]
[1736689896146,0.21421,3269.5,3269.2,0.65983]
[1736689896353,0.9136,3269.6,3269.3,0.21422]
[1736689896354,1.12781,3269.6,3269.3,0.21422]
[1736689896555,0.9136,3269.6,3269.3,0.21422]
[1736689896759,0.21422,3269.5,3269.2,0.4456]
[1736689896953,0.9136,3269.6,3269.2,0.4456]
[1736689897553,1.12781,3269.6,3269.3,0.21423]
[1736689897743,1.12781,3269.6,3269.3,41.01423]
[1736689898155,0.4649,3269.5,3269.3,41.01423]
[1736689898553,0.4649,3269.5,3269.3,40.8]
[1736689898744,0.4649,3269.5,3269.3,41.01422]
[1736689898944,0.67911,3269.5,3269.3,40.8]
[1736689899152,0.4649,3269.5,3269.3,41.01422]
[1736689899449,0.4649,3269.5,3269.4,0.21422]
[1736689899655,0.4649,3269.5,3269.3,41.01423]
[1736689900851,0.4649,3269.5,3269.3,40.8]
[1736689901052,0.6145575,3269.5,3269.3,41.01422]
[1736689902359,0.8287775,3269.5,3269.3,41.01422]
[1736689902557,0.6145575,3269.5,3269.3,41.01422]
[1736689902859,0.6145575,3269.5,3269.3,40.8]
[1736689903051,0.6145575,3269.5,3269.3,41.01422]
[1736689903460,0.6145575,3269.5,3269.3,40.8]
[1736689903756,0.6145575,3269.5,3269.3,41.01422]
[1736689904461,0.6145575,3269.5,3269.4,0.21422]
[1736689904660,0.1496575,3269.5,3269.4,0.21422]
[1736689904861,0.1496575,3269.5,3269.4,3.42202]
[1736689911366,0.1496575,3269.5,3269.4,3.2078]
[1736689911762,0.1496575,3269.5,3269.4,3.42202]
[1736689912468,0.3638675,3269.5,3269.4,3.2078]
[1736689912663,0.1496575,3269.5,3269.4,3.2078]
[1736689913168,0.3638775,3269.5,3269.3,0.21423]
[1736689913359,0.8911,3269.4,3269.3,0.21423]
[1736689916166,0.4425,3269.4,3269.3,0.21423]
[1736689917264,0.4391,3269.8,3269.2,3.2078]
[1736689917472,0.2142,3269.7,3269.5,0.21421]
[1736689917767,0.21421,3269.6,3269.4,0.21422]
[1736689918972,0.15445941,3269.6,3269.2,3.6785]
[1736689919165,0.36866941,3269.6,3269.4,0.21422]
[1736689919667,0.36866941,3269.6,3269.2,3.6785]
[1736689919668,0.21422,3269.5,3269.2,3.89273]
[1736689919969,0.36866941,3269.6,3269.4,0.21422]
[1736689921668,0.15445941,3269.6,3269.4,0.21422]
[1736689921867,0.15445941,3269.6,3269.5,0.21421]
[1736689922068,0.15445941,3269.6,3269.2,3.6785]
[1736689922366,0.15445941,3269.6,3269.4,0.21421]
[1736689923075,0.36866941,3269.6,3269.4,0.21421]
[1736689923371,0.15445941,3269.6,3269.4,0.21421]
[1736689923673,0.15445941,3269.6,3269.2,3.6785]
[1736689923873,0.15445941,3269.6,3269.4,0.21421]
[1736689924673,0.15445941,3269.6,3269.5,0.21421]
[1736689925368,0.4367,3270.1,3269.2,3.6785]
[1736689925670,1.13206,3270.3,3269.2,3.6785]
[1736689925671,0.9179,3270.3,3270.2,0.21417]
[1736689925971,0.65084,3270.6,3269.9,0.53548]
[1736689926178,0.9178,3270.6,3270.5,0.21415]
[1736689926467,0.9178,3270.6,3270.1,3.2078]
[1736689926673,0.9178,3270.6,3270.5,0.21415]
[1736689926871,1.13194,3270.6,3270.4,0.21415]
[1736689927066,0.4811,3270.6,3270.1,3.2078]
[1736689927279,0.4811,3270.6,3270.5,0.21415]
[1736689927471,0.4811,3270.6,3270.1,3.2078]
[1736689927975,0.00132716,3270.7,3270.6,0.21414]
[1736689929077,0.21409,3271.4,3271.1,0.21411]
[1736689929273,0.4696,3271.5,3271.1,0.21411]
[1736689929483,0.21409,3271.4,3271.1,0.21411]
[1736689929870,0.68369,3271.5,3270.7,0.53534]
[1736689930073,0.69567,3271.7,3271.2,0.2141]
[1736689930378,0.9512,3271.7,3271.1,1.21]
[1736689930576,3.2078,3271.8,3271.3,0.2141]
[1736689930774,3.42186,3271.8,3271.2,1.414]
[1736689931085,3.6574,3271.8,3271.3,0.21409]
[1736689931377,0.36996219,3271.6,3271.2,0.2141]
[1736689931572,0.15588219,3271.6,3271.0,4.4178]
[1736689931781,0.4764,3271.5,3271.1,0.21411]
[1736689931973,0.4492,3271.4,3271.1,0.21411]
[1736689932372,0.4496,3271.3,3271.1,0.21411]
[1736689932580,0.2141,3271.2,3271.0,3.2078]
[1736689933481,0.2141,3271.2,3270.8,0.21412]
[1736689933680,0.21411,3271.1,3270.7,0.21413]
[1736689933882,3.6574,3271.3,3270.6,4.8656]
[1736689934279,0.2141,3271.2,3270.8,0.21412]
[1736689934479,3.8715,3271.3,3270.9,0.21412]
[1736689934689,3.6574,3271.3,3270.6,4.8656]
[1736689934978,3.6574,3271.3,3271.1,0.2141]
[1736689935583,3.6574,3271.3,3271.1,0.21411]
[1736689935778,3.8715,3271.3,3270.9,0.21412]
[1736689936288,0.21411,3271.2,3270.8,0.64842]
[1736689936484,0.21411,3271.2,3270.9,0.21412]
[1736689936680,0.21411,3271.2,3270.8,0.4343]
[1736689936886,0.21411,3271.2,3270.8,0.21412]
[1736689937488,0.21411,3271.2,3270.9,0.21412]
[1736689937687,3.6574,3271.3,3270.6,4.8656]
[1736689938093,0.21411,3271.2,3270.9,0.21412]
[1736689938283,3.6574,3271.3,3270.6,4.8656]
[1736689938592,3.8715,3271.3,3270.9,0.21412]
[1736689939092,0.21411,3271.1,3270.7,0.21413]
[1736689939391,0.21411,3271.1,3270.8,0.21413]
[1736689939990,3.6574,3271.3,3270.6,4.8656]
[1736689940182,0.21411,3271.1,3270.7,0.21413]
[1736689940693,0.21412,3271.0,3270.7,0.21413]
[1736689940888,0.4523,3270.9,3270.7,0.21413]
[1736689941195,0.4523,3270.9,3270.8,0.21413]
[1736689943293,0.2141,3271.2,3270.9,0.21412]
[1736689943493,0.6707,3271.2,3270.9,0.21412]
[1736689943691,0.67071,3271.2,3270.8,0.21412]
[1736689943892,0.67071,3271.2,3270.7,0.21413]
[1736689944091,0.67071,3271.2,3270.8,0.21412]
[1736689944294,0.21411,3271.1,3270.8,0.21413]
[1736689944592,0.21411,3271.1,3270.7,0.21413]
[1736689944793,0.21411,3271.1,3270.6,4.8656]
[1736689944996,0.21411,3271.1,3270.8,0.21413]
[1736689945796,0.4566,3271.2,3270.6,4.8656]
[1736689945996,0.6707,3271.2,3270.9,0.21412]
[1736689946195,0.4566,3271.2,3271.0,0.21412]
[1736689946694,0.6707,3271.2,3270.9,0.21412]
[1736689946995,0.15531902,3271.1,3270.9,0.21412]
[1736689947293,0.15531902,3271.1,3270.6,4.8656]
[1736689947705,0.21412,3270.9,3270.6,3.86974]
[1736689948000,0.15531902,3271.1,3270.5,1.42415]
[1736689948001,0.21413,3270.8,3270.5,1.42415]
[1736689948299,0.8906,3270.8,3270.6,0.21414]
[1736689950896,1.10473,3270.8,3270.2,45.46278403]
[1736689951404,1.10473,3270.8,3270.5,0.21414]
[1736689951601,0.8906,3270.8,3270.5,0.21414]
[1736689951802,1.10473,3270.8,3270.5,0.21414]
[1736689952104,1.10473,3270.8,3270.2,45.46278403]
[1736689952306,0.8906,3270.8,3270.6,0.21414]
[1736689954508,0.8906,3270.8,3270.7,0.21413]
[1736689956917,0.36942902,3271.1,3270.8,0.21412]
[1736689957214,0.9297,3271.0,3270.9,0.21412]
[1736689963123,1.07927094,3271.0,3270.9,0.21412]
[1736689968730,1.07927094,3271.0,3270.7,0.21413]